[Event "*** Titled Tuesday 3|2 Blitz"]
[Site "Chess.com"]
[Date "2017.05.02"]
[Round "4"]
[White "aa175"]
[Black "WeiYi1999"]
[Result "1-0"]
[WhiteElo "1808"]
[BlackElo "2067"]
[TimeControl "180+2"]
[EndTime "13:50:53 PDT"]
[Termination "aa175 won by resignation"]

1. e4 {[%clk 0:03:02]} 1... e5 {[%clk 0:02:57.5]} 2. Nf3 {[%clk 0:03:03.1]} 2...
Nc6 {[%clk 0:02:56.4]} 3. Bc4 {[%clk 0:03:03.6]} 3... Bc5 {[%clk 0:02:57.2]} 4.
Nc3 {[%clk 0:03:04.3]} 4... Nf6 {[%clk 0:02:57.4]} 5. d3 {[%clk 0:03:04.4]} 5...
h6 {[%clk 0:02:58.4]} 6. h3 {[%clk 0:03:05.4]} 6... d6 {[%clk 0:02:59.7]} 7. O-O
{[%clk 0:03:06]} 7... O-O {[%clk 0:03:01]} 8. Be3 {[%clk 0:03:06.6]} 8... Bb6
{[%clk 0:03:02.2]} 9. a3 {[%clk 0:03:07.6]} 9... Bxe3 {[%clk 0:02:55.9]} 10.
fxe3 {[%clk 0:03:08.4]} 10... Be6 {[%clk 0:02:57.8]} 11. Bxe6 {[%clk 0:03:08.5]}
11... fxe6 {[%clk 0:02:58.3]} 12. Rf2 {[%clk 0:03:03.8]} 12... Qe7 {[%clk
0:02:27]} 13. d4 {[%clk 0:02:43]} 13... exd4 {[%clk 0:02:22.3]} 14. exd4 {[%clk
0:02:44.9]} 14... Nd8 {[%clk 0:02:13.3]} 15. Qd3 {[%clk 0:02:43.5]} 15... Nd7
{[%clk 0:01:56.5]} 16. Raf1 {[%clk 0:02:32]} 16... Nc6 {[%clk 0:01:45.3]} 17.
Nd2 {[%clk 0:02:07.4]} 17... Rxf2 {[%clk 0:01:37.3]} 18. Rxf2 {[%clk 0:02:07.7]}
18... Rf8 {[%clk 0:01:39]} 19. Rxf8+ {[%clk 0:02:06.7]} 19... Qxf8 {[%clk
0:01:40.9]} 20. Nf3 {[%clk 0:02:07]} 20... a6 {[%clk 0:01:38.5]} 21. Qc4 {[%clk
0:02:05.5]} 21... Qf7 {[%clk 0:01:37.9]} 22. Kf2 {[%clk 0:01:41.9]} 22... Nb6
{[%clk 0:01:25.3]} 23. Qd3 {[%clk 0:01:41.9]} 23... e5 {[%clk 0:01:26.3]} 24. d5
{[%clk 0:01:39.3]} 24... Nd4 {[%clk 0:01:25.2]} 25. Kg1 {[%clk 0:01:25.1]} 25...
Nxf3+ {[%clk 0:01:27.1]} 26. Qxf3 {[%clk 0:01:25.9]} 26... Qxf3 {[%clk
0:01:25.6]} 27. gxf3 {[%clk 0:01:27.8]} 27... Nc4 {[%clk 0:01:27.5]} 28. Nd1
{[%clk 0:01:25.2]} 28... b5 {[%clk 0:01:25.5]} 29. Kg2 {[%clk 0:01:22.2]} 29...
Kf7 {[%clk 0:01:26.8]} 30. Kg3 {[%clk 0:01:22.1]} 30... Kf6 {[%clk 0:01:27.8]}
31. h4 {[%clk 0:01:07.6]} 31... g5 {[%clk 0:01:26]} 32. h5 {[%clk 0:01:07.9]}
32... a5 {[%clk 0:01:21.2]} 33. Kg4 {[%clk 0:01:05.9]} 33... b4 {[%clk
0:01:18.3]} 34. axb4 {[%clk 0:01:05.6]} 34... axb4 {[%clk 0:01:17.8]} 35. b3
{[%clk 0:01:05.7]} 35... Na3 {[%clk 0:01:16.4]} 36. Ne3 {[%clk 0:01:04.1]} 36...
Nb5 {[%clk 0:01:18.3]} 37. Nf5 {[%clk 0:00:50.8]} 37... Na3 {[%clk 0:01:13.8]}
38. Ne3 {[%clk 0:00:50.6]} 38... Nb5 {[%clk 0:01:11.6]} 39. Nc4 {[%clk
0:00:48.3]} 39... Nd4 {[%clk 0:01:08.4]} 40. Ne3 {[%clk 0:00:47.9]} 40... Nb5
{[%clk 0:01:06.6]} 41. Nf5 {[%clk 0:00:47]} 41... Na7 {[%clk 0:00:56.3]} 42.
Nxh6 {[%clk 0:00:42.2]} 42... Nb5 {[%clk 0:00:57.6]} 43. Nf5 {[%clk 0:00:42.7]}
43... Nc3 {[%clk 0:00:54.9]} 44. Ne3 {[%clk 0:00:39.1]} 44... Nb5 {[%clk
0:00:53.3]} 45. h6 {[%clk 0:00:38.9]} 45... Kg6 {[%clk 0:00:52]} 46. h7 {[%clk
0:00:39.8]} 46... Kxh7 {[%clk 0:00:52.8]} 47. Kxg5 {[%clk 0:00:41.3]} 47... Kg7
{[%clk 0:00:48.9]} 48. Nc4 {[%clk 0:00:32.5]} 48... Nd4 {[%clk 0:00:47.6]} 49.
Ne3 {[%clk 0:00:27.4]} 49... Nxf3+ {[%clk 0:00:41.8]} 50. Kg4 {[%clk 0:00:27]}
50... Nd2 {[%clk 0:00:43.7]} 51. Kf5 {[%clk 0:00:28]} 51... Kf7 {[%clk
0:00:41.7]} 52. Nc4 {[%clk 0:00:26.4]} 52... Nxc4 {[%clk 0:00:37.8]} 53. bxc4
{[%clk 0:00:26.9]} 53... Ke7 {[%clk 0:00:36.6]} 54. Kg6 {[%clk 0:00:27.9]} 54...
Ke8 {[%clk 0:00:33.8]} 55. Kg7 {[%clk 0:00:26.4]} 55... Kd7 {[%clk 0:00:31.5]}
56. Kf7 {[%clk 0:00:26.8]} 56... c6 {[%clk 0:00:25.5]} 57. Kf8 {[%clk
0:00:24.2]} 57... cxd5 {[%clk 0:00:23.3]} 58. cxd5 {[%clk 0:00:24.9]} 58... Kd8
{[%clk 0:00:11.7]} 59. Kf7 {[%clk 0:00:24.7]} 59... Kd7 {[%clk 0:00:12.8]} 60.
Kf6 {[%clk 0:00:25.3]} 60... Kd8 {[%clk 0:00:11.2]} 61. Ke6 {[%clk 0:00:26.2]}
61... Kc7 {[%clk 0:00:12.3]} 62. Ke7 {[%clk 0:00:27.4]} 62... Kb6 {[%clk
0:00:13.3]} 63. Kxd6 {[%clk 0:00:29.3]} 63... Kb5 {[%clk 0:00:14.6]} 64. Ke7
{[%clk 0:00:28.5]} 64... Kc4 {[%clk 0:00:16.5]} 65. d6 {[%clk 0:00:30]} 65...
Kc3 {[%clk 0:00:17.5]} 66. d7 {[%clk 0:00:31.9]} 66... Kxc2 {[%clk 0:00:19.4]}
67. d8=Q {[%clk 0:00:33.2]} 67... b3 {[%clk 0:00:21.2]} 68. Qc7+ {[%clk
0:00:34.4]} 68... Kd3 {[%clk 0:00:21]} 69. Qxe5 {[%clk 0:00:33.9]} 1-0

[Event "*** Titled Tuesday 3|2 Blitz"]
[Site "Chess.com"]
[Date "2017.05.02"]
[Round "4"]
[White "LawrenceTrent"]
[Black "Vrolijk"]
[Result "0-1"]
[WhiteElo "2416"]
[BlackElo "2326"]
[TimeControl "180+2"]
[EndTime "13:51:25 PDT"]
[Termination "Vrolijk won by resignation"]

1. e4 {[%clk 0:03:02]} 1... e6 {[%clk 0:02:59.4]} 2. d4 {[%clk 0:03:02.6]} 2...
d5 {[%clk 0:02:59.2]} 3. Bd3 {[%clk 0:03:03.5]} 3... dxe4 {[%clk 0:02:55.7]} 4.
Bxe4 {[%clk 0:03:04.7]} 4... Nf6 {[%clk 0:02:57.5]} 5. Bf3 {[%clk 0:03:05.9]}
5... c5 {[%clk 0:02:59.2]} 6. Ne2 {[%clk 0:03:07]} 6... Nc6 {[%clk 0:02:59.3]}
7. Be3 {[%clk 0:03:07.9]} 7... cxd4 {[%clk 0:03:00.3]} 8. Nxd4 {[%clk
0:03:08.7]} 8... Ne5 {[%clk 0:03:01.7]} 9. Be2 {[%clk 0:03:01.6]} 9... Be7
{[%clk 0:02:56]} 10. O-O {[%clk 0:02:59.8]} 10... O-O {[%clk 0:02:56.3]} 11. h3
{[%clk 0:02:57.9]} 11... Nd5 {[%clk 0:02:45.2]} 12. Bc1 {[%clk 0:02:58.4]} 12...
Bd7 {[%clk 0:02:42.4]} 13. c4 {[%clk 0:02:59.1]} 13... Nf6 {[%clk 0:02:41.6]}
14. Nc3 {[%clk 0:02:59.4]} 14... Nc6 {[%clk 0:02:40.9]} 15. Bf3 {[%clk 0:02:31]}
15... Rc8 {[%clk 0:02:32.4]} 16. b3 {[%clk 0:02:20.9]} 16... Nxd4 {[%clk
0:02:18.6]} 17. Qxd4 {[%clk 0:02:21.1]} 17... Bc6 {[%clk 0:02:20.1]} 18. Qxd8
{[%clk 0:02:21.6]} 18... Rfxd8 {[%clk 0:02:19.8]} 19. Bxc6 {[%clk 0:02:22.5]}
19... Rxc6 {[%clk 0:02:20.1]} 20. Be3 {[%clk 0:02:21.4]} 20... Bc5 {[%clk
0:02:06.7]} 21. Bg5 {[%clk 0:02:09.7]} 21... Kf8 {[%clk 0:01:51.7]} 22. Rad1
{[%clk 0:02:03.6]} 22... Rxd1 {[%clk 0:01:50.4]} 23. Rxd1 {[%clk 0:02:04.2]}
23... Rd6 {[%clk 0:01:51.9]} 24. Rxd6 {[%clk 0:01:55.8]} 24... Bxd6 {[%clk
0:01:53.8]} 25. Be3 {[%clk 0:01:36.6]} 25... a6 {[%clk 0:01:51.4]} 26. Kf1
{[%clk 0:01:29.9]} 26... Ke7 {[%clk 0:01:50.8]} 27. Ke2 {[%clk 0:01:31]} 27...
Kd7 {[%clk 0:01:51.6]} 28. Bd4 {[%clk 0:01:30.9]} 28... Kc6 {[%clk 0:01:13.2]}
29. Bxf6 {[%clk 0:01:13.1]} 29... gxf6 {[%clk 0:01:12]} 30. Ne4 {[%clk
0:01:14.3]} 30... Be7 {[%clk 0:01:09.5]} 31. g4 {[%clk 0:01:15.3]} 31... Kd7
{[%clk 0:01:01.7]} 32. Kd3 {[%clk 0:01:14.8]} 32... f5 {[%clk 0:00:59.5]} 33.
gxf5 {[%clk 0:01:15.3]} 33... exf5 {[%clk 0:01:01.4]} 34. Ng3 {[%clk 0:01:14.4]}
34... Ke6 {[%clk 0:01:01.9]} 35. Ne2 {[%clk 0:01:15]} 35... Bc5 {[%clk
0:00:54.7]} 36. f3 {[%clk 0:01:04.9]} 36... Ke5 {[%clk 0:00:52]} 37. f4+ {[%clk
0:01:03.5]} 37... Kf6 {[%clk 0:00:53]} 38. Nd4 {[%clk 0:00:59.5]} 38... Bd6
{[%clk 0:00:52.9]} 39. Ke3 {[%clk 0:01:00.4]} 39... Bc5 {[%clk 0:00:54]} 40. Kd3
{[%clk 0:00:59.6]} 40... Bd6 {[%clk 0:00:54.8]} 41. Ne2 {[%clk 0:00:51.7]} 41...
Ke6 {[%clk 0:00:55.2]} 42. Ke3 {[%clk 0:00:51.9]} 42... Bc5+ {[%clk 0:00:55.7]}
43. Kf3 {[%clk 0:00:52.7]} 43... Kf6 {[%clk 0:00:48.4]} 44. Nc3 {[%clk
0:00:52.3]} 44... Ke6 {[%clk 0:00:47.3]} 45. Nd5 {[%clk 0:00:51.4]} 45... Bd6
{[%clk 0:00:44.2]} 46. Ne3 {[%clk 0:00:38.8]} 46... Bc5 {[%clk 0:00:44.6]} 47.
Nd5 {[%clk 0:00:37.2]} 47... Bd6 {[%clk 0:00:40.7]} 48. Nc3 {[%clk 0:00:28.8]}
48... Bb4 {[%clk 0:00:40.7]} 49. Ne2 {[%clk 0:00:29.7]} 49... Bc5 {[%clk
0:00:41.4]} 50. Nc1 {[%clk 0:00:29]} 50... Bd4 {[%clk 0:00:32]} 51. Nd3 {[%clk
0:00:27.4]} 51... Kd6 {[%clk 0:00:33.4]} 52. b4 {[%clk 0:00:27]} 52... b5 {[%clk
0:00:24.4]} 53. c5+ {[%clk 0:00:27.9]} 53... Kd5 {[%clk 0:00:25.9]} 54. Ne5
{[%clk 0:00:25.4]} 54... f6 {[%clk 0:00:18.8]} 55. Nd7 {[%clk 0:00:18]} 55...
Bc3 {[%clk 0:00:18.2]} 56. a3 {[%clk 0:00:17.9]} 56... Bb2 {[%clk 0:00:19.2]}
57. Ke3 {[%clk 0:00:14.3]} 57... Kc6 {[%clk 0:00:20]} 58. Nb8+ {[%clk
0:00:14.3]} 58... Kb7 {[%clk 0:00:21.4]} 59. Nd7 {[%clk 0:00:15.7]} 59... Bxa3
{[%clk 0:00:21.5]} 60. Kd4 {[%clk 0:00:15.8]} 60... Kc6 {[%clk 0:00:19.7]} 61.
Nb8+ {[%clk 0:00:17]} 61... Kb7 {[%clk 0:00:21]} 62. Nd7 {[%clk 0:00:18.3]}
62... Kc7 {[%clk 0:00:19.2]} 63. Nf8 {[%clk 0:00:16.9]} 63... Kc6 {[%clk
0:00:18.7]} 64. Nxh7 {[%clk 0:00:15]} 64... Bxb4 {[%clk 0:00:18.1]} 65. Nxf6
{[%clk 0:00:16.3]} 65... Bxc5+ {[%clk 0:00:19.6]} 66. Kd3 {[%clk 0:00:17.7]}
66... a5 {[%clk 0:00:20.6]} 67. Nh5 {[%clk 0:00:15.2]} 67... Be7 {[%clk
0:00:21]} 68. Ng7 {[%clk 0:00:15.8]} 68... a4 {[%clk 0:00:21.7]} 69. Nxf5 {[%clk
0:00:17.2]} 69... Bf6 {[%clk 0:00:23.3]} 70. Kc2 {[%clk 0:00:18.4]} 70... b4
{[%clk 0:00:23.9]} 71. Ne3 {[%clk 0:00:19.5]} 71... Kc5 {[%clk 0:00:24.6]} 72.
Nd1 {[%clk 0:00:19.9]} 72... b3+ {[%clk 0:00:25.6]} 73. Kb1 {[%clk 0:00:20.2]}
73... a3 {[%clk 0:00:25.5]} 74. Kc1 {[%clk 0:00:17.6]} 74... a2 {[%clk
0:00:25.3]} 0-1

[Event "*** Titled Tuesday 3|2 Blitz"]
[Site "Chess.com"]
[Date "2017.05.02"]
[Round "4"]
[White "biostatistician"]
[Black "Bryakin_Mikhail"]
[Result "1/2-1/2"]
[WhiteElo "2405"]
[BlackElo "2541"]
[TimeControl "180+2"]
[EndTime "13:51:45 PDT"]
[Termination "Game drawn by stalemate"]

1. d4 {[%clk 0:03:02]} 1... d5 {[%clk 0:02:59.5]} 2. Nf3 {[%clk 0:03:03.9]} 2...
Nf6 {[%clk 0:02:59.8]} 3. c4 {[%clk 0:03:05.8]} 3... c6 {[%clk 0:03:00.9]} 4.
cxd5 {[%clk 0:03:06.3]} 4... cxd5 {[%clk 0:03:01.8]} 5. Nc3 {[%clk 0:03:08.2]}
5... Nc6 {[%clk 0:03:02.9]} 6. Bf4 {[%clk 0:03:09.7]} 6... a6 {[%clk 0:03:04]}
7. Rc1 {[%clk 0:03:09.9]} 7... h6 {[%clk 0:03:00.6]} 8. e3 {[%clk 0:03:07.2]}
8... Bg4 {[%clk 0:03:01.6]} 9. Qb3 {[%clk 0:03:05.2]} 9... Na5 {[%clk
0:02:49.4]} 10. Qa4+ {[%clk 0:02:48]} 10... Bd7 {[%clk 0:02:48]} 11. Qd1 {[%clk
0:02:44.1]} 11... Rc8 {[%clk 0:02:44.5]} 12. Ne5 {[%clk 0:02:44.2]} 12... e6
{[%clk 0:02:43.5]} 13. Bd3 {[%clk 0:02:43.7]} 13... Nc4 {[%clk 0:02:39.8]} 14.
Qe2 {[%clk 0:02:36.8]} 14... b5 {[%clk 0:02:39.8]} 15. O-O {[%clk 0:02:36.2]}
15... Be7 {[%clk 0:02:18.2]} 16. a4 {[%clk 0:02:36.9]} 16... O-O {[%clk
0:02:16.1]} 17. axb5 {[%clk 0:02:30.6]} 17... axb5 {[%clk 0:02:15]} 18. Nxd7
{[%clk 0:02:29.4]} 18... Qxd7 {[%clk 0:02:03.7]} 19. b3 {[%clk 0:02:29.9]} 19...
Na3 {[%clk 0:01:23.1]} 20. Nxb5 {[%clk 0:02:25.5]} 20... Ne4 {[%clk 0:01:10.1]}
21. h3 {[%clk 0:01:57.6]} 21... Nxb5 {[%clk 0:00:40]} 22. Bxb5 {[%clk
0:01:59.5]} 22... Qa7 {[%clk 0:00:41.6]} 23. Ba6 {[%clk 0:01:42.8]} 23... Rxc1
{[%clk 0:00:27.6]} 24. Rxc1 {[%clk 0:01:44.7]} 24... Qb6 {[%clk 0:00:29.3]} 25.
Qb5 {[%clk 0:01:34.3]} 25... Qxb5 {[%clk 0:00:29.5]} 26. Bxb5 {[%clk 0:01:36.2]}
26... g5 {[%clk 0:00:22.8]} 27. Bc7 {[%clk 0:01:31.9]} 27... Rc8 {[%clk
0:00:21.1]} 28. Bd7 {[%clk 0:01:31.4]} 28... Ra8 {[%clk 0:00:21.9]} 29. Ba4
{[%clk 0:01:13.6]} 29... Rc8 {[%clk 0:00:21]} 30. Rc6 {[%clk 0:00:49.4]} 30...
Bb4 {[%clk 0:00:16.6]} 31. f3 {[%clk 0:00:39.4]} 31... Nc3 {[%clk 0:00:17.6]}
32. Be5 {[%clk 0:00:26.8]} 32... Ra8 {[%clk 0:00:11.5]} 33. Rb6 {[%clk
0:00:24.4]} 33... Ba5 {[%clk 0:00:12.5]} 34. Rb8+ {[%clk 0:00:24.9]} 34... Rxb8
{[%clk 0:00:12.8]} 35. Bxb8 {[%clk 0:00:26.8]} 35... Nd1 {[%clk 0:00:12.5]} 36.
e4 {[%clk 0:00:26.1]} 36... Bb6 {[%clk 0:00:09.1]} 37. Be5 {[%clk 0:00:25.5]}
37... Nc3 {[%clk 0:00:08.3]} 38. exd5 {[%clk 0:00:24]} 38... Ne2+ {[%clk
0:00:03.1]} 39. Kf1 {[%clk 0:00:19.9]} 39... Nxd4 {[%clk 0:00:05]} 40. dxe6
{[%clk 0:00:21.4]} 40... Nxe6 {[%clk 0:00:04.9]} 41. b4 {[%clk 0:00:21.9]} 41...
Kf8 {[%clk 0:00:06.1]} 42. Bb3 {[%clk 0:00:21.7]} 42... Ke7 {[%clk 0:00:07.2]}
43. Bxe6 {[%clk 0:00:20.6]} 43... Kxe6 {[%clk 0:00:09.1]} 44. Bg7 {[%clk
0:00:21.6]} 44... h5 {[%clk 0:00:10.6]} 45. Ke2 {[%clk 0:00:22.9]} 45... Kd5
{[%clk 0:00:12.1]} 46. Kd3 {[%clk 0:00:23.3]} 46... f5 {[%clk 0:00:13.4]} 47. g4
{[%clk 0:00:20.6]} 47... hxg4 {[%clk 0:00:13.9]} 48. hxg4 {[%clk 0:00:20.5]}
48... fxg4 {[%clk 0:00:15.2]} 49. fxg4 {[%clk 0:00:22.4]} 49... Bd8 {[%clk
0:00:16.4]} 50. Bd4 {[%clk 0:00:20.4]} 50... Bc7 {[%clk 0:00:12.8]} 51. Be3
{[%clk 0:00:20.6]} 51... Bd8 {[%clk 0:00:13.8]} 52. b5 {[%clk 0:00:20.2]} 52...
Ke5 {[%clk 0:00:14.9]} 53. Bd2 {[%clk 0:00:11.8]} 53... Kd5 {[%clk 0:00:16]} 54.
Bb4 {[%clk 0:00:08.6]} 54... Ke5 {[%clk 0:00:13]} 55. Ke3 {[%clk 0:00:08.3]}
55... Bb6+ {[%clk 0:00:14.2]} 56. Kf3 {[%clk 0:00:08.5]} 56... Kd5 {[%clk
0:00:15.2]} 57. Be7 {[%clk 0:00:09.6]} 57... Kc4 {[%clk 0:00:16.6]} 58. Bxg5
{[%clk 0:00:10.4]} 58... Kxb5 {[%clk 0:00:18.5]} 59. Ke4 {[%clk 0:00:10.9]}
59... Kc6 {[%clk 0:00:20]} 60. Ke5 {[%clk 0:00:10.6]} 60... Kd7 {[%clk
0:00:21.4]} 61. Kf6 {[%clk 0:00:10.8]} 61... Ke8 {[%clk 0:00:22.8]} 62. Bh6
{[%clk 0:00:09.9]} 62... Bd4+ {[%clk 0:00:22.6]} 63. Ke6 {[%clk 0:00:11.1]}
63... Bc3 {[%clk 0:00:22.2]} 64. Bf4 {[%clk 0:00:07.7]} 64... Kf8 {[%clk
0:00:22.6]} 65. g5 {[%clk 0:00:08.5]} 65... Kg8 {[%clk 0:00:23.4]} 66. Be5
{[%clk 0:00:09.7]} 66... Bxe5 {[%clk 0:00:23.4]} 67. Kxe5 {[%clk 0:00:11.6]}
67... Kg7 {[%clk 0:00:24.8]} 68. Kf4 {[%clk 0:00:12.5]} 68... Kg6 {[%clk
0:00:25.9]} 69. Kg4 {[%clk 0:00:13.9]} 69... Kg7 {[%clk 0:00:27.2]} 70. Kf5
{[%clk 0:00:15.8]} 70... Kf7 {[%clk 0:00:28.1]} 71. g6+ {[%clk 0:00:17.7]} 71...
Kg7 {[%clk 0:00:29.4]} 72. Kg5 {[%clk 0:00:18.7]} 72... Kg8 {[%clk 0:00:30.7]}
73. Kf6 {[%clk 0:00:20]} 73... Kf8 {[%clk 0:00:32]} 74. g7+ {[%clk 0:00:21.9]}
74... Kg8 {[%clk 0:00:33.1]} 75. Kg6 {[%clk 0:00:23.8]} 1/2-1/2